bitfinex-derivatives/quotes_BNBF0:USTF0_20250507
["timestamp","ask_amount","ask_price","bid_price","bid_amount"]
[1746658565974,1.25418057,601.8,601.31,3.2992295]
[1746658566176,1.25418057,601.79,601.31,3.2992295]
[1746658566373,2.24916475,601.78,601.31,3.2992295]
[1746658566576,1.25418057,601.77,601.31,3.2992295]
[1746658566875,1.25418057,601.76,601.31,3.2992295]
[1746658567072,2.24916475,601.75,601.31,3.2992295]
[1746658567271,0.99498418,601.75,601.31,3.2992295]
[1746658567777,1.25490327,601.74,601.31,3.2992295]
[1746658567977,0.99498418,601.73,601.31,3.2992295]
[1746658568177,0.99498418,601.73,601.31,2.3852295]
[1746658568675,0.99498418,601.72,601.31,2.3852295]
[1746658568976,0.99498418,601.71,601.31,2.3852295]
[1746658569677,0.99498418,601.7,601.31,2.3852295]
[1746658569883,0.99498418,601.69,601.31,2.3852295]
[1746658570481,0.99498418,601.68,601.31,2.3852295]
[1746658570981,0.33187309,602.64,601.31,2.3852295]
[1746658571181,2.55819414,602.63,601.31,2.3852295]
[1746658571481,1.58770636,602.62,601.31,2.3852295]
[1746658571681,1.58771187,602.61,601.31,2.3852295]
[1746658571881,2.89008926,602.6,601.31,2.3852295]
[1746658572082,1.58772288,602.59,601.31,2.3852295]
[1746658572281,1.56113746,602.58,601.31,2.3852295]
[1746658572481,1.25582226,602.57,601.31,2.3852295]
[1746658572678,2.25287894,602.56,601.31,2.3852295]
[1746658572878,2.25831342,602.55,601.31,2.3852295]
[1746658573080,2.25287894,602.54,601.31,2.3852295]
[1746658573275,1.25582226,602.53,601.31,2.3852295]
[1746658573478,1.25582226,602.52,601.31,2.3852295]
[1746658573681,1.58853439,602.51,601.31,2.3852295]
[1746658573881,2.25364638,602.5,601.31,2.3852295]
[1746658574087,1.2565897,602.49,601.31,2.3852295]
[1746658574283,2.25364638,602.48,601.31,2.3852295]
[1746658574486,1.2565897,602.47,601.31,2.3852295]
[1746658574786,2.25364638,602.46,601.31,2.3852295]
[1746658574985,2.25909923,602.45,601.31,2.3852295]
[1746658575284,1.56190463,602.44,601.31,2.3852295]
[1746658575481,1.2565897,602.43,601.31,2.3852295]
[1746658575685,1.2565897,602.42,601.31,2.3852295]
[1746658575884,1.56190463,602.41,601.31,2.3852295]
[1746658576085,2.25364638,602.4,601.31,2.3852295]
[1746658576285,1.2565897,602.39,601.31,2.3852295]
[1746658576489,1.2565897,602.38,601.31,2.3852295]
[1746658576687,1.2565897,602.37,601.31,2.3852295]
[1746658576891,1.2565897,602.36,601.31,2.3852295]
[1746658577088,1.56190463,602.35,601.31,2.3852295]
[1746658577390,2.55896131,602.34,601.31,2.3852295]
[1746658577691,1.2565897,602.33,601.31,2.3852295]
[1746658577891,2.25364638,602.32,601.31,2.3852295]
[1746658578091,1.2565897,602.31,601.31,2.3852295]
[1746658578293,1.2565897,602.3,601.31,2.3852295]
[1746658578587,2.25364638,602.29,601.31,2.3852295]
[1746658578792,2.25364638,602.28,601.31,2.3852295]
[1746658578991,1.2565897,602.27,601.31,2.3852295]
[1746658579191,2.55896131,602.26,601.31,2.3852295]
[1746658579389,1.2565897,602.25,601.31,2.3852295]
[1746658579589,1.2565897,602.24,601.31,2.3852295]
[1746658579787,2.25364638,602.23,601.31,2.3852295]
[1746658579990,1.2565897,602.22,601.31,2.3852295]
[1746658580192,1.2565897,602.21,601.31,2.3852295]
[1746658580391,2.25364638,602.2,601.31,2.3852295]
[1746658580591,2.25364638,602.19,601.31,2.3852295]
[1746658580891,1.25728883,602.18,601.31,2.3852295]
[1746658581091,1.25728883,602.17,601.31,2.3852295]
[1746658581293,2.25434551,602.16,601.31,2.3852295]
[1746658581493,1.25728883,602.15,601.31,2.3852295]
[1746658581687,2.25434551,602.14,601.31,2.3852295]
[1746658581890,1.25728883,602.13,601.31,2.3852295]
[1746658582088,1.25728883,602.12,601.31,2.3852295]
[1746658582288,1.25728883,602.11,601.31,2.3852295]
[1746658582594,2.25434551,602.1,601.31,2.3852295]
[1746658582794,1.25728883,602.09,601.31,2.3852295]
[1746658582995,1.25728883,602.08,601.31,2.3852295]
[1746658583195,1.25728883,602.07,601.31,2.3852295]
[1746658583395,1.25630321,602.06,601.31,2.3852295]
[1746658583595,1.25630321,602.05,601.31,2.3852295]
[1746658583797,1.25630321,602.04,601.31,2.3852295]
[1746658583993,2.25335989,602.03,601.31,2.3852295]
[1746658584194,1.25630321,602.02,601.31,2.3852295]
[1746658584403,0.2892143,602.15,601.31,2.3852295]
[1746658584404,2.25335989,602.01,601.31,2.3852295]
[1746658584700,1.25630321,602.0,601.31,2.3852295]
[1746658585001,2.25335989,601.99,601.31,2.3852295]
[1746658585196,1.25630321,601.98,601.31,2.3852295]
[1746658585395,1.25630321,601.97,601.31,2.3852295]
[1746658585596,2.25335989,601.96,601.31,2.3852295]
[1746658585793,1.25630321,601.95,601.31,2.3852295]
[1746658585994,1.25630321,601.94,601.31,2.3852295]
[1746658586197,2.25335989,601.93,601.31,2.3852295]
[1746658586402,1.25630321,601.92,601.31,2.3852295]
[1746658586599,1.25630321,601.91,601.31,2.3852295]
[1746658586899,1.25630321,601.9,601.31,3.2002295]
[1746658587195,2.25234311,601.89,601.31,3.2002295]
[1746658587395,1.25528643,601.88,601.31,3.2002295]
[1746658587595,2.25234311,601.87,601.31,3.2002295]
[1746658587793,1.25528643,601.86,601.31,3.2002295]
[1746658588097,1.25528643,601.85,601.31,3.2002295]
[1746658588297,1.25528643,601.84,601.31,3.2002295]
[1746658588593,1.25528643,601.83,601.31,1.9952295]
[1746658588793,2.25234311,601.82,601.31,1.9952295]
[1746658588999,2.25234311,601.81,601.31,1.9952295]
[1746658589198,1.25528643,601.8,601.31,1.9952295]
[1746658589394,1.25528643,601.79,601.31,1.9952295]
[1746658589599,2.25234311,601.78,601.31,1.9952295]
[1746658589895,2.25234311,601.77,601.31,1.9952295]
[1746658590092,1.25528643,601.76,601.31,1.9952295]
[1746658590294,2.25234311,601.75,601.31,1.9952295]
[1746658590495,0.99705668,601.75,601.31,1.9952295]
[1746658590795,0.99705668,601.74,601.31,1.9952295]
[1746658594599,0.99705668,601.73,601.31,1.9952295]
[1746658595001,0.99705668,601.72,601.31,1.9952295]
[1746658595302,0.99705668,601.71,601.31,1.9952295]
[1746658596003,0.99705668,601.7,601.31,1.9952295]
[1746658596701,0.99705668,601.69,601.31,1.9952295]
[1746658596902,0.28926959,602.09,601.31,1.9952295]
[1746658597103,1.25651005,602.08,601.31,1.9952295]
[1746658597303,1.25651005,602.07,601.31,1.9952295]
[1746658597502,1.25651005,602.06,601.31,1.9952295]
[1746658597703,1.25651005,602.05,601.31,1.9952295]
[1746658597999,1.25651005,602.04,601.31,1.9952295]
[1746658598304,2.25687098,602.03,601.31,1.9952295]
[1746658598604,2.25687098,602.02,601.31,1.9952295]
[1746658598903,1.25651005,602.01,601.31,1.9952295]
[1746658599105,2.25687098,602.0,601.31,1.9952295]
[1746658599305,1.25651005,601.99,601.31,1.9952295]
[1746658599501,1.25651005,601.98,601.31,1.9952295]
[1746658599701,2.25687098,601.97,601.31,1.9952295]
[1746658599905,2.25687098,601.96,601.31,1.9952295]
[1746658600105,1.25651005,601.95,601.31,1.9952295]
[1746658600303,2.25687098,601.94,601.31,1.9952295]
[1746658600500,1.25651005,601.93,601.31,1.9952295]
[1746658600704,1.25651005,601.92,601.31,1.9952295]
[1746658600905,1.25651005,601.91,601.31,1.9952295]
[1746658601107,1.25651005,601.9,601.31,1.9952295]
[1746658601305,1.25651005,601.89,601.31,1.9952295]
[1746658601507,2.25687098,601.88,601.31,1.9952295]
[1746658601705,1.25651005,601.87,601.31,1.9952295]
[1746658601902,1.25651005,601.86,601.31,1.9952295]
[1746658602205,2.25687098,601.85,601.31,1.9952295]
[1746658602502,2.25687098,601.84,601.31,1.9952295]
[1746658602702,1.25651005,601.83,601.31,1.9952295]
[1746658602903,2.25687098,601.82,601.31,1.1362295]
[1746658603102,1.25651005,601.81,601.31,1.1362295]
[1746658603307,1.25651005,601.8,601.31,1.1362295]
[1746658603507,1.25651005,601.79,601.31,1.1362295]
[1746658603802,2.25687098,601.78,601.31,1.1362295]
[1746658604007,1.25651005,601.77,601.31,1.1362295]
[1746658604209,1.00036093,601.78,601.31,1.1362295]
[1746658604408,1.00036093,601.76,601.31,1.1362295]
[1746658604609,1.00036093,601.75,601.31,1.1362295]
[1746658605211,1.00036093,601.74,601.31,1.1362295]
[1746658605811,1.00036093,601.73,601.31,1.1362295]
[1746658606307,1.00036093,601.72,601.31,1.1362295]
[1746658606810,0.28926479,602.09,601.31,1.1362295]
[1746658607010,1.25617043,602.08,601.31,1.1362295]
[1746658607210,2.25629018,602.07,601.31,1.1362295]
[1746658607412,1.25617043,602.06,601.31,1.1362295]
[1746658607710,2.25629018,602.05,601.31,1.1362295]
[1746658607906,2.25629018,602.04,601.31,1.1362295]
[1746658608211,2.25629018,602.03,601.31,1.1362295]
[1746658608407,1.25617043,602.02,601.31,1.1362295]
[1746658608608,1.25617043,602.01,601.31,1.1362295]
[1746658608810,1.25615486,602.0,601.31,1.1362295]
[1746658609113,2.25627461,601.99,601.31,1.1362295]
[1746658609414,2.25627461,601.98,601.31,1.1362295]
[1746658609614,1.25615486,601.97,601.31,1.1362295]
[1746658609809,2.25627461,601.96,601.31,2.3832295]
[1746658610006,2.25627461,601.95,601.31,2.3832295]
[1746658610211,1.25615486,601.94,601.31,2.3832295]
[1746658610410,1.25615486,601.93,601.31,2.3832295]
[1746658610609,1.25615486,601.92,601.31,2.3832295]
[1746658610806,1.25615486,601.91,601.31,2.3832295]
[1746658611111,0.28922993,602.09,601.31,2.3832295]
[1746658611112,2.25627461,601.9,601.31,2.3832295]
[1746658611311,1.25615486,601.89,601.31,2.3832295]
[1746658611510,2.25627461,601.88,601.31,2.3832295]
[1746658611813,1.25615486,601.87,601.31,2.3832295]
[1746658612110,2.25627461,601.86,601.31,2.3832295]
[1746658612311,1.25615486,601.85,601.31,2.3832295]
[1746658612510,1.25604842,601.84,601.31,2.3832295]
[1746658612707,2.25616817,601.83,601.31,2.3832295]
[1746658612907,1.25604842,601.82,601.31,1.5682295]
[1746658613106,2.25616817,601.81,601.31,1.5682295]
[1746658613311,1.25604842,601.8,601.31,1.5682295]
[1746658613507,2.25616817,601.79,601.31,1.5682295]
[1746658613710,1.25604842,601.78,601.31,1.5682295]
[1746658613912,1.25604842,601.77,601.31,1.5682295]
[1746658614212,1.00011975,601.76,601.31,1.5682295]
[1746658614711,1.00011975,601.75,601.31,1.5682295]
[1746658615114,1.00011975,601.74,601.31,1.5682295]
[1746658615613,1.00011975,601.73,601.31,1.5682295]
[1746658616009,1.00011975,601.72,601.31,1.5682295]
[1746658616309,0.28926238,602.09,601.31,1.5682295]
[1746658616514,1.25594095,602.08,601.31,1.5682295]
[1746658616710,1.25594095,602.07,601.31,1.5682295]
[1746658616910,1.25594095,602.06,601.31,1.5682295]
[1746658617116,1.25594095,602.05,601.31,1.5682295]
[1746658617316,2.25607457,602.04,601.31,1.5682295]
[1746658617515,1.25594095,602.03,601.31,1.5682295]
[1746658617712,2.25607457,602.02,601.31,1.5682295]
[1746658617916,2.25607457,602.01,601.31,1.5682295]
[1746658618111,1.25601741,602.0,601.31,1.5682295]
[1746658618314,1.25601592,601.99,601.31,1.5682295]
[1746658618611,1.25601592,601.98,601.31,1.5682295]
[1746658618817,1.25601592,601.97,601.31,1.5682295]
[1746658619017,2.25614954,601.96,601.31,1.5682295]
[1746658619213,1.25601592,601.95,601.31,1.5682295]
[1746658619418,1.25601592,601.94,601.31,1.5682295]
[1746658619620,2.25614954,601.93,601.31,1.5682295]
[1746658619814,1.25601592,601.92,601.31,1.5682295]
[1746658620020,1.25615893,601.91,601.31,1.5682295]
[1746658620220,2.25629255,601.9,601.31,1.5682295]
[1746658620421,1.25615893,601.89,601.31,1.5682295]
[1746658620718,2.25629255,601.88,601.31,1.5682295]
[1746658620921,1.25615893,601.87,601.31,1.5682295]
[1746658621122,1.25615893,601.86,601.31,1.5682295]
[1746658621324,1.25674108,601.85,601.31,1.5682295]
[1746658621517,2.2568747,601.84,601.31,1.5682295]
[1746658621723,1.25674108,601.83,601.31,1.5682295]
[1746658621920,2.2568747,601.82,601.31,1.5682295]
[1746658622123,1.25674108,601.81,601.31,1.5682295]
[1746658622320,1.25674108,601.8,601.31,1.5682295]
[1746658622623,1.25674108,601.79,601.31,1.5682295]
[1746658622825,1.25674108,601.78,601.31,1.5682295]
[1746658623024,1.25674108,601.77,601.31,1.5682295]
[1746658623227,1.00013362,601.77,601.31,1.5682295]
[1746658623628,1.00013362,601.76,601.31,1.5682295]
[1746658624322,1.00013362,601.75,601.31,1.5682295]
[1746658624728,1.00013362,601.74,601.31,1.5682295]
[1746658625227,1.00013362,601.73,601.31,1.5682295]
[1746658625628,1.00013362,601.72,601.31,1.5682295]
[1746658625824,1.00013362,601.72,601.31,0.3212295]
[1746658626128,1.00013362,601.71,601.31,0.3212295]
[1746658626525,0.28926118,602.09,601.31,0.3212295]
[1746658626730,1.25775642,602.08,601.31,0.3212295]
[1746658626923,1.25768087,602.07,601.31,0.3212295]
[1746658627123,2.25855034,602.06,601.31,0.3212295]
[1746658627329,1.25768087,602.05,601.31,0.3212295]
[1746658627529,1.25768087,602.04,601.31,0.3212295]
[1746658627730,2.25855034,602.03,601.31,0.3212295]
[1746658627924,1.25768087,602.02,601.31,0.3212295]
[1746658628126,2.25855034,602.01,601.31,0.3212295]
[1746658628329,2.25868262,602.0,601.31,0.3212295]
[1746658628631,1.25781315,601.99,601.31,0.3212295]
[1746658628831,1.2573627,601.98,601.31,0.3212295]
[1746658629031,2.25823217,601.97,601.31,1.1432295]
[1746658629229,1.2573627,601.96,601.31,1.1432295]
[1746658629433,2.25823217,601.95,601.31,1.1432295]
[1746658629733,1.2573627,601.94,601.31,1.1432295]
[1746658629933,2.25823217,601.93,601.31,1.1432295]
[1746658630133,1.2573627,601.92,601.31,1.1432295]
[1746658630329,1.2573627,601.91,601.31,1.1432295]
[1746658630527,2.25823217,601.9,601.31,1.1432295]
[1746658630729,1.25740955,601.89,601.31,1.1432295]
[1746658630935,1.25740955,601.88,601.31,1.1432295]
[1746658631135,1.25740955,601.87,601.31,1.1432295]
[1746658631333,1.25740955,601.86,601.31,1.1432295]
[1746658631629,2.25827902,601.85,601.31,1.1432295]
[1746658631838,1.25740955,601.84,601.31,1.1432295]
[1746658632135,2.25827902,601.83,601.31,1.1432295]
[1746658632334,1.25740955,601.82,601.31,1.1432295]
[1746658632535,1.25740955,601.81,601.31,1.1432295]
[1746658632734,1.25764301,601.8,601.31,1.1432295]
[1746658632927,1.25764301,601.79,601.31,1.1432295]
[1746658633132,1.25764301,601.78,601.31,1.1432295]
[1746658633329,1.00086947,601.77,601.31,1.1432295]
[1746658633532,1.00086947,601.76,601.31,1.1432295]
[1746658634235,1.00086947,601.75,601.31,1.1432295]
[1746658634635,1.00086947,601.74,601.31,1.1432295]
[1746658634835,1.00086947,601.73,601.31,1.1432295]
[1746658635230,1.00086947,601.72,601.31,1.1432295]
[1746658635935,1.00086947,601.71,601.31,1.1432295]
[1746658636437,0.28926719,602.12,601.31,1.1432295]
[1746658636634,1.25856648,602.11,601.31,1.1432295]
[1746658636838,1.25856648,602.1,601.31,1.1432295]
[1746658637039,2.26032244,602.09,601.31,1.1432295]
[1746658637232,1.25856648,602.08,601.31,1.1432295]
[1746658637436,1.25856648,602.07,601.31,1.1432295]
[1746658637636,1.25856648,602.06,601.31,1.1432295]
[1746658637835,2.26032244,602.05,601.31,1.1432295]
[1746658638034,1.25856648,602.04,601.31,1.1432295]
[1746658638237,2.26032244,602.03,601.31,1.1432295]
[1746658638438,1.25856648,602.02,601.31,1.1432295]
[1746658638633,1.25856648,602.01,601.31,1.1432295]
[1746658638834,1.25856648,602.0,601.31,1.1432295]
[1746658639038,1.25856648,601.99,601.31,1.1432295]
[1746658639239,1.25856648,601.98,601.31,1.1432295]
[1746658639538,2.26032244,601.97,601.31,1.1432295]
[1746658639738,1.25856648,601.96,601.31,1.1432295]
[1746658639933,1.25856648,601.95,601.31,1.1432295]
[1746658640137,2.26032244,601.94,601.31,1.1432295]
[1746658640439,1.25856648,601.93,601.31,1.1432295]
[1746658640634,2.26032244,601.92,601.31,1.1432295]
[1746658640834,1.25856648,601.91,601.31,1.1432295]
[1746658641035,1.00175596,601.92,601.31,1.1432295]
[1746658641036,1.25856648,601.9,601.31,1.1432295]
[1746658641330,1.25856648,601.89,601.31,1.1432295]
[1746658641536,2.26032244,601.88,601.31,1.1432295]
[1746658641733,2.26032244,601.87,601.31,1.1432295]
[1746658641936,1.25856648,601.86,601.31,1.1432295]
[1746658642134,1.25856648,601.85,601.31,1.1432295]
[1746658642334,2.26024446,601.84,601.31,1.1432295]
[1746658642535,1.00175596,601.84,601.31,1.1432295]
[1746658642737,1.25848494,601.83,601.31,1.1432295]
[1746658642935,1.25848494,601.82,601.31,1.1432295]
[1746658643133,1.25848494,601.81,601.31,1.1432295]
[1746658643338,2.2602409,601.8,601.31,1.1432295]
[1746658643534,2.2602409,601.79,601.31,1.1432295]
[1746658643738,1.25848494,601.78,601.31,1.1432295]
[1746658643936,1.25848494,601.77,601.31,1.1432295]
[1746658644136,1.25848494,601.76,601.31,1.1432295]
[1746658644340,2.2602409,601.75,601.31,1.1432295]
[1746658644545,1.25848494,601.74,601.31,1.1432295]
[1746658644840,1.00175596,601.73,601.31,1.1432295]
[1746658645041,1.00175596,601.73,601.31,0.3212295]
[1746658645642,1.00175596,601.72,601.31,0.3212295]
[1746658646241,1.00175596,601.71,601.31,0.3212295]
[1746658647040,1.00175596,601.7,601.31,0.3212295]
[1746658647441,1.00175596,601.69,601.31,0.3212295]
[1746658648042,0.28926479,602.12,601.31,0.3212295]
[1746658648243,1.25786692,602.11,601.31,0.3212295]
[1746658648437,1.25786692,602.1,601.31,1.3332295]
[1746658648636,1.25786692,602.09,601.31,1.3332295]
[1746658648841,2.25985793,602.08,601.31,1.3332295]
[1746658649039,2.25985793,602.07,601.31,1.3332295]
[1746658649341,1.25785398,602.06,601.31,1.3332295]
[1746658649541,1.25785398,602.05,601.31,1.3332295]
[1746658649744,1.25785398,602.04,601.31,1.3332295]
[1746658649939,1.25785398,602.03,601.31,1.3332295]
[1746658650138,1.25785398,602.02,601.31,1.3332295]
[1746658650345,1.25785398,602.01,601.31,1.3332295]
[1746658650646,2.25984499,602.0,601.31,1.3332295]
[1746658650843,1.25785398,601.99,601.31,1.3332295]
[1746658651039,2.25984499,601.98,601.31,1.3332295]
[1746658651240,1.25785398,601.97,601.31,1.3332295]
[1746658651444,1.25785398,601.96,601.31,1.3332295]
[1746658651643,1.25785398,601.95,601.31,1.3332295]
[1746658651938,1.25785398,601.94,601.31,1.3332295]
[1746658652143,1.25785398,601.93,601.31,1.3332295]
[1746658652342,1.25785398,601.92,601.31,1.3332295]
[1746658652542,1.25785398,601.91,601.31,1.3332295]
[1746658652740,2.25984499,601.9,601.31,1.3332295]
[1746658652939,1.25785398,601.89,601.31,1.3332295]
[1746658653141,2.25984499,601.88,601.31,1.3332295]
[1746658653343,1.25785398,601.87,601.31,1.3332295]
[1746658653538,1.25785398,601.86,601.31,1.3332295]
[1746658653743,2.25984499,601.85,601.31,1.3332295]
[1746658653943,1.25785398,601.84,601.31,1.3332295]
[1746658654145,2.25984499,601.83,601.31,1.3332295]
[1746658654439,1.25785398,601.82,601.31,1.3332295]
[1746658654644,1.25848351,601.81,601.31,1.3332295]
[1746658654945,1.00199101,601.83,601.31,1.3332295]
[1746658655145,1.25847613,601.82,601.31,1.3332295]
[1746658655339,1.25847613,601.81,601.31,1.3332295]
[1746658655539,1.00199101,601.83,601.31,1.3332295]
[1746658655946,1.25848586,601.8,601.31,1.3332295]
[1746658656146,1.25849542,601.79,601.31,1.3332295]
[1746658656447,1.25849542,601.78,601.31,1.3332295]
[1746658656646,1.25849542,601.77,601.31,1.3332295]
[1746658656946,2.26054523,601.76,601.31,1.3332295]
[1746658657145,1.25855422,601.75,601.31,1.3332295]
[1746658657347,1.00199101,601.76,601.31,1.3332295]
[1746658657642,2.2604478,601.75,601.31,1.3332295]
[1746658657947,1.00199101,601.75,601.31,1.3332295]
[1746658658345,1.00199101,601.74,601.31,1.3332295]
[1746658658844,1.00199101,601.73,601.31,1.3332295]
[1746658659442,1.00199101,601.72,601.31,1.3332295]
[1746658659846,1.00199101,601.71,601.31,1.3332295]
[1746658660747,0.28926719,602.12,601.31,1.3332295]
[1746658660945,1.25817332,602.11,601.31,1.3332295]
[1746658661146,2.26022773,602.1,601.31,1.3332295]
[1746658661345,1.25817332,602.09,601.31,1.3332295]
[1746658661541,1.25817332,602.08,601.31,1.3332295]
[1746658661747,2.26022773,602.07,601.31,1.3332295]
[1746658662047,1.25817332,602.06,601.31,1.3332295]
[1746658662241,1.25817332,602.05,601.31,1.3332295]
[1746658662444,2.26022923,602.04,601.31,1.3332295]
[1746658662745,1.25817482,602.03,601.31,1.3332295]
[1746658663046,1.25817482,602.02,601.31,1.3332295]
[1746658663247,1.25817482,602.01,601.31,2.4282295]
[1746658663549,2.26022923,602.0,601.31,2.4282295]
[1746658663749,1.25817482,601.99,601.31,2.4282295]
[1746658663949,1.25817482,601.98,601.31,2.4282295]
[1746658664143,2.26022923,601.97,601.31,2.4282295]
[1746658664342,1.25817482,601.96,601.31,2.4282295]
[1746658664542,1.25817482,601.95,601.31,2.4282295]
[1746658664746,1.25817482,601.94,601.31,2.4282295]
[1746658664942,1.25817482,601.93,601.31,2.4282295]
[1746658665148,2.26022923,601.92,601.31,2.4282295]
[1746658665347,1.25817482,601.91,601.31,2.4282295]
[1746658665544,1.00205441,601.92,601.31,2.4282295]
[1746658665545,1.25817482,601.9,601.31,2.4282295]
[1746658665746,2.26022923,601.89,601.31,2.4282295]
[1746658665948,1.25817482,601.88,601.31,2.4282295]
[1746658666149,1.25846187,601.87,601.31,2.4282295]
[1746658666450,2.26051628,601.86,601.31,2.4282295]
[1746658666650,1.25846187,601.85,601.31,2.4282295]
[1746658666847,1.25846187,601.84,601.31,2.4282295]
[1746658667052,1.25846187,601.83,601.31,2.4282295]
[1746658667252,2.26051628,601.82,601.31,2.4282295]
[1746658667461,1.25846187,601.81,601.31,2.4282295]
[1746658667645,1.25846187,601.8,601.31,2.4282295]
[1746658667846,1.00205441,601.82,601.31,2.4282295]
[1746658667847,2.26051628,601.79,601.31,2.4282295]
[1746658668049,1.25846187,601.78,601.31,2.4282295]
[1746658668251,1.25846187,601.77,601.31,2.4282295]
[1746658668447,2.26051628,601.76,601.31,2.4282295]
[1746658668747,1.2586527,601.75,601.31,2.4282295]
[1746658668951,1.00205441,601.76,601.31,2.4282295]
[1746658669251,2.26070739,601.75,601.31,2.4282295]
[1746658669448,1.00205441,601.75,601.31,2.4282295]
[1746658669651,1.00205441,601.74,601.31,2.4282295]
[1746658670050,1.00205441,601.73,601.31,2.4282295]
[1746658670257,1.00205441,601.72,601.31,2.4282295]
[1746658670454,1.00205441,601.72,601.31,1.4162295]
[1746658670654,1.00205441,601.71,601.31,1.4162295]
[1746658670949,0.28926238,602.12,601.31,1.4162295]
[1746658671155,1.25863307,602.11,601.31,1.4162295]
[1746658671353,2.26147729,602.1,601.31,1.4162295]
[1746658671554,1.25863307,602.09,601.31,1.4162295]
[1746658671754,1.25863307,602.08,601.31,1.4162295]
[1746658672057,2.26147729,602.07,601.31,1.4162295]
[1746658672249,2.26147729,602.06,601.31,1.4162295]
[1746658672453,1.25863307,602.05,601.31,1.4162295]
[1746658672651,1.25863307,602.04,601.31,1.4162295]
[1746658672849,2.26147729,602.03,601.31,1.4162295]
[1746658673053,1.25863307,602.02,601.31,1.4162295]
[1746658673251,1.25863307,602.01,601.31,1.4162295]
[1746658673455,2.26147729,602.0,601.31,1.4162295]
[1746658673751,1.25863307,601.99,601.31,1.4162295]
[1746658673956,1.25863307,601.98,601.31,2.5942295]
[1746658674157,2.26147729,601.97,601.31,2.5942295]
[1746658674350,1.25863307,601.96,601.31,2.5942295]
[1746658674555,2.26147729,601.95,601.31,2.5942295]
[1746658674758,1.25863307,601.94,601.31,2.5942295]
[1746658675056,2.26147729,601.93,601.31,2.5942295]
[1746658675257,1.25863307,601.92,601.31,2.5942295]
[1746658675457,1.2527906,601.91,601.31,2.5942295]
[1746658675658,2.25563482,601.9,601.31,2.5942295]
[1746658675863,1.00284422,601.9,601.31,2.5942295]
[1746658676255,1.00284422,601.89,601.31,2.5942295]
[1746658676559,1.00284422,601.88,601.31,2.5942295]
[1746658677358,1.00284422,601.87,601.31,2.5942295]
[1746658678255,1.00284422,601.86,601.31,2.5942295]
[1746658678854,1.00284422,601.85,601.31,2.5942295]
[1746658679552,1.00284422,601.84,601.31,2.5942295]
[1746658679962,1.00284422,601.83,601.31,2.5942295]
[1746658680262,1.00284422,601.82,601.31,2.5942295]
[1746658680461,1.00284422,601.81,601.31,2.5942295]
[1746658680760,1.00284422,601.8,601.31,2.5942295]
[1746658680961,0.28923233,602.22,601.31,2.5942295]
[1746658681161,1.00303761,602.21,601.31,2.5942295]
[1746658681559,1.00303761,602.2,601.31,2.5942295]
[1746658682461,1.00303761,602.19,601.31,2.5942295]
[1746658683060,1.00303761,602.18,601.31,2.5942295]
[1746658683458,1.00303761,602.17,601.31,2.5942295]
[1746658684365,1.00303761,602.16,601.31,2.5942295]
[1746658684865,1.00303761,602.15,601.31,2.5942295]
[1746658685258,1.00303761,602.14,601.31,2.5942295]
[1746658685664,1.00303761,602.14,601.31,3.5162295]
[1746658685858,1.00303761,602.13,601.31,3.5162295]
[1746658686464,1.00303761,602.12,601.31,3.5162295]
[1746658687065,1.00303761,602.11,601.31,3.5162295]
[1746658687465,1.25755126,602.1,601.31,3.5162295]
[1746658687662,1.25755126,602.09,601.31,3.5162295]
[1746658687863,2.26058887,602.08,601.31,3.5162295]
[1746658688059,1.25755126,602.07,601.31,3.5162295]
[1746658688264,1.25755126,602.06,601.31,3.5162295]
[1746658688565,2.26058887,602.05,601.31,3.5162295]
[1746658688864,1.25755126,602.04,601.31,3.5162295]
[1746658689058,1.25755126,602.03,601.31,3.5162295]
[1746658689261,2.26058887,602.02,601.31,3.5162295]
[1746658689463,1.25755126,602.01,601.31,3.5162295]
[1746658689770,2.26058887,602.0,601.31,3.5162295]
[1746658689965,1.25755126,601.99,601.31,3.5162295]
[1746658690165,1.25755126,601.98,601.31,3.5162295]
[1746658690366,1.25755126,601.97,601.31,3.5162295]
[1746658690562,1.25755126,601.96,601.31,3.5162295]
[1746658690767,1.00303761,601.98,601.31,3.5162295]
[1746658690768,2.26058887,601.95,601.31,3.5162295]
[1746658690966,1.25755126,601.94,601.31,3.5162295]
[1746658691162,1.25814231,601.93,601.31,3.5162295]
[1746658691363,1.25814231,601.92,601.31,3.5162295]
[1746658691563,1.25814231,601.91,601.31,3.5162295]
[1746658691767,1.25814231,601.9,601.31,3.5162295]
[1746658691965,1.25814231,601.89,601.31,3.5162295]
[1746658692169,2.26117992,601.88,601.31,3.5162295]
[1746658692469,1.25814231,601.87,601.31,3.5162295]
[1746658692669,2.26117992,601.86,601.31,3.5162295]
[1746658692865,1.25814231,601.85,601.31,3.5162295]
[1746658693170,0.28920709,602.22,601.31,3.5162295]
[1746658693371,2.26188504,602.21,601.31,3.5162295]
[1746658693565,2.26188504,602.2,601.31,3.5162295]
[1746658693764,1.25930395,602.19,601.31,3.5162295]
[1746658693969,2.26188504,602.18,601.31,3.5162295]
[1746658694170,2.26188504,602.17,601.31,3.5162295]
[1746658694371,1.25930395,602.16,601.31,3.5162295]
[1746658694569,1.00258109,602.17,601.31,3.5162295]
[1746658694570,2.26188504,602.15,601.31,3.5162295]
[1746658694772,1.2592968,602.14,601.31,3.5162295]
[1746658694971,1.2592968,602.13,601.31,3.5162295]